Cogmind - Beta 11 X9 @@@ ROGUE MODE // 2021.12.24 @ 12:19:09 // Winter2021/Sauler Player: Stryker Result: Destroyed by as-88116 with Assembled Blade Performance ------------- Evolutions (0) 0 Regions Visited (4) 800 Robots Destroyed (19) 95 Value Destroyed (345) 345 Prototype IDs (2) 40 Alien Tech Used (0) 0 Bonus (0) 0 TOTAL SCORE: 1280 Bonus ------- None Cogmind --------- Core Integrity 0/250 Matter 245/300 Energy 77/100 System Corruption 7% Temperature Hot (200) Movement Treading (240) Ox1 Location -9/Mines Parts ------- > --- POWER (1) -------- (None) > --- PROPULSION (2) --- Light Treads Light Treads > --- UTILITY (2) ------ High-capacity Storage Unit > --- WEAPON (2) ------- Spread Laser > --- INVENTORY (20) --- Light Treads Improved Treads Improved Treads Improved Treads Wheel Large Storage Unit High-capacity Matter Pod (200) Structural Scanner Structural Scanner Improved Terrain Scanner ECM Suite Hacking Suite System Shield Beam Cannon Beam Cannon Light Assault Rifle Grenade Launcher Makeshift Axe Peak State ------------ > --- POWER ------------ Makeshift Power Source > --- PROPULSION ------- Light Treads Wheel > --- UTILITY ---------- Improved Heat Sink High-capacity Storage Unit > --- WEAPON ----------- Spread Laser Spread Laser > --- INVENTORY -------- Light Treads Light Treads Improved Treads Improved Treads Improved Treads Wheel Large Storage Unit High-capacity Matter Pod Structural Scanner Structural Scanner Improved Terrain Scanner ECM Suite Hacking Suite System Shield Beam Cannon Beam Cannon Light Assault Rifle Grenade Launcher Makeshift Axe [Rating: 17] Favorites ----------- Power Light Nuclear Core Engine Makeshift Power Source Power Core Light Nuclear Core Propulsion Light Treads Treads Light Treads Leg Aluminum Leg Wheel Wheel Utility Improved Heat Sink Device Improved Heat Sink Storage High-capacity Storage Unit Weapon Spread Laser Energy Gun Spread Laser Ballistic Gun Light Assault Rifle Launcher Grenade Launcher Build | -11 -10 -10 -10 -9 ------- Run | Scr Mat Min Exi Min Slots Evolved . | . . . . . Power . | . . . . . Propulsion . | . . . . . Utility . | . . . . . Weapon . | . . . . . Parts Attached 21 | 2 14 . 1 4 Power 2 | . 1 . 1 . Engine 1 | . . . 1 . Core 1 | . 1 . . . Reactor . | . . . . . Propulsion 7 | 1 5 . . 1 Treads 5 | . 4 . . 1 Leg . | . . . . . Wheel 2 | 1 1 . . . Hover . | . . . . . Flight . | . . . . . Utility 7 | 1 6 . . . Device 4 | 1 3 . . . Storage 3 | . 3 . . . Processor . | . . . . . Hackware . | . . . . . Protection . | . . . . . Artifact . | . . . . . Weapon 5 | . 2 . . 3 Energy Gun 3 | . 1 . . 2 Energy Cannon . | . . . . . Ballistic Gun 1 | . 1 . . . Ballistic Cannon . | . . . . . Launcher 1 | . . . . 1 Special Weapon . | . . . . . Impact Weapon . | . . . . . Slashing Weapon . | . . . . . Piercing Weapon . | . . . . . Special Melee Weapon . | . . . . . Unidentified Prototypes . | . . . . . Corrupted Parts 1 | 1 . . . . System Corruption 1 | 1 . . . . Parts Lost 8 | . 3 . . 5 Power 2 | . 1 . . 1 Propulsion 2 | . 1 . . 1 Utility 2 | . 1 . . 1 Weapon 2 | . . . . 2 Highest Loss Streak 5 | . 3 . . 5 Average Slot Usage (%) 99 | . 98 100 100 98 Engine 3 | . 1 . 6 14 Core 10 | . 11 14 7 . Treads 14 | . 15 14 14 14 Wheel 12 | . 11 14 14 14 Device 13 | . 13 14 14 14 Storage 14 | . 14 14 14 14 Energy Gun 15 | . 18 14 14 11 Ballistic Gun 12 | . 9 14 14 12 Naked Turns . | . . . . . Heaviest Build 50 | 12 50 50 50 49 Greatest Support 43 | 20 43 10 10 10 Greatest Overweight (x) 4 | . 4 4 4 4 Average Overweight (x) 2 | . 1 4 4 4 Largest Inventory Capacity 20 | 8 20 20 20 20 Average Capacity 16 | 8 12 20 20 20 Most Carried 20 | 8 16 20 20 20 Average Carried 16 | 7 11 18 20 19 Final Capacity 20 | 8 20 20 20 20 Final Carried 20 | 8 16 20 20 18 Class Distribution -------------------- 89% | Mutant 10% | Scavenger-Mutant Dominant Class ---------------- Mutant | -10/Materials Mutant | -10/Mines Mutant | -10/Exiles Mutant | -9/Mines Resources | -11 -10 -10 -10 -9 ----------- Run | Scr Mat Min Exi Min Matter Collected 574 | 210 239 115 10 . Remotely . | . . . . . Salvage Created 519 | 89 405 . . 25 Parts 37 | 5 32 . . . Haulers Intercepted 1 | . 1 . . . Recyclers Shooed . | . . . . . Parts Field Recycled . | . . . . . Retrieved Matter . | . . . . . Parts Self-Destructed . | . . . . . Prevented . | . . . . . Kills | -11 -10 -10 -10 -9 ------- Run | Scr Mat Min Exi Min Combat Hostiles Destroyed 19 | . 12 . . 7 Guns 13 | . 12 . . 1 AOE 6 | . . . . 6 Classes Destroyed 9 | 2 6 . . 1 Builder 1 | . 1 . . . Tunneler 1 | 1 . . . . Hauler 1 | . 1 . . . Recycler 1 | 1 . . . . Operator 1 | . 1 . . . Watcher 2 | . 2 . . . Swarmer 6 | . 6 . . . Grunt 6 | . 6 . . . Assembled 7 | . . . . 7 Best Kill Streak 7 | 1 4 . . 7 Combat Bots Only 7 | . 3 . . 7 Max Kills in Single Turn 2 | 1 1 . . 2 Gunslinging . | . . . . . Exploded 2 | . . . . 2 Melee . | . . . . . Uniques/NPCs Destroyed . | . . . . . Combat | -11 -10 -10 -10 -9 -------- Run | Scr Mat Min Exi Min Damage Taken 1160 | . 410 . . 750 Core 283 | . 97 . . 186 Absorbed by Shields . | . . . . . Core Remaining (%) 100 | 100 . . . . Volleys Fired 48 | 4 38 . . 6 Largest 2 | 2 2 . . 2 Hottest 130 | 80 105 . . 130 Shots Fired 91 | 8 76 . . 7 Gun 87 | 8 76 . . 3 Cannon . | . . . . . Launcher 4 | . . . . 4 Special . | . . . . . Kinetic 14 | . 14 . . . Thermal 62 | 4 55 . . 3 Explosive 4 | . . . . 4 Electromagnetic 11 | 4 7 . . . Robot Hit Streak 10 | 3 10 . . 8 Robot Miss Streak 6 | 1 6 . . 2 Penetration Max . | . . . . . Secondary Targets 1 | . 1 . . . Max Gunslinging Chain 1 | . 1 . . . Shots Hit Robots 65 | 4 57 . . 4 Core Hits 80 | 3 49 . . 28 Critical Kills . | . . . . . Critical Parts Destroyed . | . . . . . Critical Strikes . | . . . . . Melee Attacks . | . . . . . Impact . | . . . . . Slashing . | . . . . . Piercing . | . . . . . Sneak Attacks . | . . . . . Combat Hostiles . | . . . . . Follow-up Attacks . | . . . . . Damage Inflicted 1326 | 54 664 . . 608 Guns 786 | 54 664 . . 68 Cannons . | . . . . . Explosions 540 | . . . . 540 Melee . | . . . . . Ramming . | . . . . . Kinetic 87 | . 87 . . . Thermal 580 | 12 500 . . 68 Explosive 540 | . . . . 540 Electromagnetic 119 | 42 77 . . . Impact . | . . . . . Slashing . | . . . . . Piercing . | . . . . . Highest Corruption 7 | 1 1 1 1 7 Average Corruption 1 | 1 1 1 1 1 Corruption Purged . | . . . . . Effects 8 | . 3 1 3 1 Message Errors 6 | . 2 1 3 . Heat Flow Errors 1 | . . . . 1 Data Loss (minor) 1 | . 1 . . . Overload Shots . | . . . . . Overflow Damage . | . . . . . Projectiles . | . . . . . Explosions . | . . . . . Melee . | . . . . . Knockbacks . | . . . . . Impact . | . . . . . Kinetic . | . . . . . Secondary . | . . . . . Self-Inflicted Damage 32 | . . . . 32 Shots 1 | . . . . 1 Rammed . | . . . . . Targets Rammed . | . . . . . Kicked . | . . . . . Crushed . | . . . . . Highest Temperature 383 | 36 383 . . 68 Average Temperature 88 | 20 98 . . 34 Received Heat Transfer 207 | . 147 . . 60 Effects 1 | . 1 . . . Energy Bleed 1 | . 1 . . . Siege Activations . | . . . . . Robots Corrupted . | . . . . . Combat Hostiles . | . . . . . Parts Fried . | . . . . . Impact Corruptions . | . . . . . Robots Melted . | . . . . . Combat Hostiles . | . . . . . Parts Melted . | . . . . . Heat Transferred 890 | 25 780 . . 85 Parts Sabotaged . | . . . . . Parts Stolen . | . . . . . Parts Stripped . | . . . . . Power Chain Reactions . | . . . . . Missiles Intercepted . | . . . . . Alert | -11 -10 -10 -10 -9 ------- Run | Scr Mat Min Exi Min Peak Influence 252 | 10 252 33 . . Initial 33 | . 6 33 . . Average 71 | 7 118 20 . . Maximum Alert Level 1 | . 1 . . . Low Security (%) 89 | 100 80 100 . 100 Level 1 10 | . 19 . . . Level 2 . | . . . . . Level 3 . | . . . . . Level 4 . | . . . . . Level 5 . | . . . . . High Security . | . . . . . Max Security . | . . . . . Squads Dispatched 3 | . 2 1 . . Investigation 1 | . . 1 . . Extermination . | . . . . . Reinforcement 2 | . 2 . . . Assault . | . . . . . Garrison . | . . . . . Intercept . | . . . . . Construction Impeded . | . . . . . Haulers Reinforced . | . . . . . Active Scanning Responses . | . . . . . Cargo Convoy Interrupts . | . . . . . Stealth | -11 -10 -10 -10 -9 --------- Run | Scr Mat Min Exi Min Distress Signals 1 | . 1 . . . Communications Jammed . | . . . . . Distress Signals . | . . . . . Times Spotted 40 | . 22 . . 18 Peak Tracking Total 18 | . 3 . . 18 Tactical Retreats . | . . . . . Traps | -11 -10 -10 -10 -9 ------- Run | Scr Mat Min Exi Min Traps Triggered . | . . . . . Indirectly . | . . . . . Trap Hack Attempts . | . . . . . Triggered . | . . . . . Disarmed . | . . . . . Reprogrammed . | . . . . . Reused . | . . . . . Traps Extracted . | . . . . . Installed . | . . . . . Triggered . | . . . . . Machines | -11 -10 -10 -10 -9 ---------- Run | Scr Mat Min Exi Min Machines Disabled . | . . . . . Max in Single Turn . | . . . . . Machines Sabotaged . | . . . . . Garrisons Compromised . | . . . . . Overloaded Fab Kills . | . . . . . Hacking | -11 -10 -10 -10 -9 --------- Run | Scr Mat Min Exi Min Machines Accessed 7 | . 4 2 1 . Terminals 4 | . 4 . . . Fabricators . | . . . . . Repair Stations . | . . . . . Recycling Units . | . . . . . Scanalyzers . | . . . . . Garrison Access . | . . . . . Total Hacks 23 | . 16 2 5 . Successful 16 | . 9 2 5 . Failed 7 | . 7 . . . Catastrophic . | . . . . . Database Lockouts . | . . . . . Manual 9 | . 9 . . . Terminals 16 | . 16 . . . Fabricators . | . . . . . Repair Stations . | . . . . . Recycling Units . | . . . . . Scanalyzers . | . . . . . Garrison Access . | . . . . . Terminal Hacks 14 | . 7 2 5 . Record 5 | . . . 5 . Part Schematic 2 | . 2 . . . Prototype ID Bank 1 | . 1 . . . Open Door 2 | . . 2 . . Locate Traps 3 | . 3 . . . Hauler Manifests 1 | . 1 . . . Fabricator Hacks . | . . . . . Repair Station Hacks . | . . . . . Recycling Unit Hacks . | . . . . . Scanalyzer . | . . . . . Garrison Access Hacks . | . . . . . Unauthorized Hacks 2 | . 2 . . . Terminals 2 | . 2 . . . Track 1 | . 1 . . . Botnet 1 | . 1 . . . Fabricators . | . . . . . Repair Stations . | . . . . . Recycling Units . | . . . . . Scanalyzers . | . . . . . Garrison Access . | . . . . . Data Cores Recovered . | . . . . . Used . | . . . . . Hacking Detections 4 | . 4 . . . Full Trace Events . | . . . . . Feedback Events . | . . . . . Feedback Blocked . | . . . . . Robot Schematics Acquired . | . . . . . Robots Built . | . . . . . Authchips . | . . . . . Time . | . . . . . Total Robot Build Rating . | . . . . . Part Schematics Acquired 2 | . 2 . . . Parts Built . | . . . . . Authchips . | . . . . . Time . | . . . . . Total Part Build Rating . | . . . . . Parts Repaired . | . . . . . Time . | . . . . . Parts Recycled . | . . . . . Recycled Matter . | . . . . . Retrieved Matter . | . . . . . Retrieved Components . | . . . . . Parts Scanalyzed . | . . . . . Part Schematics Acquired . | . . . . . Parts Damaged . | . . . . . Bothacking | -11 -10 -10 -10 -9 ------------ Run | Scr Mat Min Exi Min Used RIF Installer . | . . . . . Robots Hacked . | . . . . . Non-combat . | . . . . . Combat . | . . . . . Robot Hacks Applied . | . . . . . Relay Couplers Released . | . . . . . Fabnet Peak Effective % . | . . . . . Robots Rewired . | . . . . . Allies Hacked . | . . . . . Hacks Repelled . | . . . . . Allies | -11 -10 -10 -10 -9 -------- Run | Scr Mat Min Exi Min Total Allies 3 | . . 3 . . Largest Group 3 | . . 3 3 3 Highest-Rated Group 40 | . . 40 40 40 Highest-Rated Ally 16 | . . 16 16 16 Total Orders 4 | . . 4 . . STAY 2 | . . 2 . . FOLLOW 2 | . . 2 . . Ally Attacks 5 | . . . . 5 Total Damage 44 | . . . . 44 Kills 1 | . . . . 1 Allies Corrupted . | . . . . . Allies Melted . | . . . . . Intel | -11 -10 -10 -10 -9 ------- Run | Scr Mat Min Exi Min Robot Analysis Total . | . . . . . Derelict Logs Recovered 2 | . . 2 . . Drone Launches . | . . . . . Drone Recoveries . | . . . . . Exploration | -11 -10 -10 -10 -9 ------------- Run | Scr Mat Min Exi Min Turns Passed 2418 | 64 951 639 660 104 Spaces Moved 1668 | 40 649 449 469 61 Core . | . . . . . Treads 88 | . 88 . . . Legs 39 | 39 . . . . Wheels 1541 | 1 561 449 469 61 Hover . | . . . . . Flight . | . . . . . Fastest Speed 95 | 100 95 140 140 140 Average Speed 130 | 119 116 140 140 140 Slowest Speed 160 | 120 160 140 140 140 Overloaded Moves . | . . . . . Propulsion Burnouts . | . . . . . Robots Hopped . | . . . . . Cave-ins Triggered . | . . . . . Exploration Rate (%) 60 | 4 96 94 88 20 Regions Visited 4 Branch Regions 3 Pre-discovered Areas 2 | . . 1 1 . Known Exits Taken . | . . . . . Unknown Exits Taken 4 | 1 1 1 1 . Scrap Searched 1 | . . 1 . . Spaces Dug 5 | . . . . 5 Terrain Destroyed 15 | . . . . 15 Melee . | . . . . . Projectile . | . . . . . AOE 15 | . . . . 15 Terrain Rammed . | . . . . . Walls Destroyed . | . . . . . Machines Disabled . | . . . . . Actions | -11 -10 -10 -10 -9 --------- Run | Scr Mat Min Exi Min Total 1831 | 47 780 460 473 71 Wait 55 | . 48 6 1 . Move 1664 | 39 648 448 468 61 Hop . | . . . . . Pick Up 25 | 2 17 5 1 . Fast Attach 5 | 1 3 . 1 . Attach 4 | . 2 . . 2 Detach . | . . . . . Swap 12 | 1 9 . . 2 Drop 18 | . 15 1 2 . Fire 48 | 4 38 . . 6 Melee . | . . . . . Ram . | . . . . . Kick . | . . . . . Crush . | . . . . . Escape Stasis . | . . . . . Rewire . | . . . . . Trap . | . . . . . Miscellaneous . | . . . . . Route ------- -11/Scrapyard -10/Materials (discovered 4 exits: [*Mat x3] / *Min) -10/Mines (discovered 3 exits: [*Mat x2] / *Exi) -10/Exiles -9/Mines History --------- Turn | Location | Event 1 | -11/Scrapyard | Discovered new exit (range 3) 65 | -11/Scrapyard | Entered Materials 107 | -10/Materials | Discovered new exit (range 16) 258 | -10/Materials | Lost 3 parts (1p1n1u) 305 | -10/Materials | Build established: Mutant 441 | -10/Materials | Discovered new exit (range 3) 682 | -10/Materials | Discovered new exit (range 13) 826 | -10/Materials | Discovered new exit (range 13) 1016 | -10/Materials | Entered Mines 1026 | -10/Mines | YI-UF0 nonchalantly dropped a Grenade Launcher on the ground 1120 | -10/Mines | Assisted by bots powering up and referring to "LRC-V3" 1166 | -10/Mines | Discovered new exit (range 15) 1304 | -10/Mines | Discovered new exit (range 8) 1429 | -10/Mines | Learned 8 Materials zone layouts 1454 | -10/Mines | Met a Derelict shopkeep closing up shop 1560 | -10/Mines | Found the Drone Emporium 1563 | -10/Mines | Learned location of Zion (-6) 1643 | -10/Mines | Deemed a non-threat by the Exiles lab entrance 1644 | -10/Mines | Discovered new exit (range 5) 1655 | -10/Mines | Entered Exiles 1655 | -10/Exiles | Found Exiles lab destroyed 1655 | -10/Exiles | Accompanied by 3 allies 2298 | -10/Exiles | Discovered new exit (range 12) 2315 | -10/Exiles | Entered Mines 2315 | -9/Mines | Accompanied by 3 allies 2392 | -9/Mines | Assembled infested the area 2398 | -9/Mines | Core integrity fell below 50% 2417 | -9/Mines | Core integrity fell below 20% 2419 | -9/Mines | Destroyed by as-88116 with Assembled Blade Last Messages --------------- 02398_ as-60745 destroyed. 02398_ as-27454 destroyed. 02400_ as-25981 destroyed. 02401_ as-79723 destroyed. 02402_ Mercenary 1a destroyed. 02406_ as-65450 destroyed. 02407_ Trooper 1b destroyed. 02408_ as-49247 destroyed. 02408_ as-77030 destroyed. 02409_ Lgt. Assault Rifle destroyed. 02410_ as-10807 destroyed. 02412_ K-01 Serf system terminally corrupted. 02413_ Wheel destroyed. 02414_ Imp. Heat Sink destroyed. 02414_ Mak. Power Source destroyed. 02414_ System corrupted by crushing effect (+3). 02414_ Destroyed Asb. Hover Unit. 02417_ Spread Laser destroyed. 02417_ as-14424 destroyed. 02419_ System corrupted: Heat flow error (+132). Map ----- +----------------------------------------------------+ | ??????????????????????????????????????? | | ??????????????????????????????????????? | | ??????????????????????????????????????? | | ??????????????????????????????????????? | | ??????????????????????????????????????? | | ??????????????????????????????????????? | | ??????????????????????????????????????? | | ??????????????????????????????????????? | | ??????????????????????????????????????? | | ?????????????????????# ?????????????? | | ????????????????????? ???????????? | | ??????????????? #### ???????????? | | ????????????? #???????????? | | ??????????? ##??????????? | | ??????????? % #??????????? | | ???????????? ?#?????????? | | ???????????? % #?????????? | | #####??????? ? #?????????? | | "" #???????# # %? #?????????? | | "" #???????# ## ?? ##????????? | | "" #???????# ## ? #????????? | | #???????# ## ?? ##???????? | | #???????# #?# ?? ##??????? | | #???????# #### a ##a #??????? | | #####???????# ### aa a%a #??????? | | #####???????# ## %@ #??????? | | ## ##?????## ## #?????? | | ####### ## ### #?????? | | #??? ##?????? | | """ #######???? ###??????? | | """ ###???????????#????????? | | """ #####??????????????????????? | | # ##??????????????????????????? | | ## #######???????????????????????????? | | ?####?????????????????????????????????? | | ??????????????????????????????????????? | | | | | | | | | | | | | | | | | | | | | | | | | | | | | +----------------------------------------------------+ Best States ------------- Heat Dissipation 39 Energy Generation 15 Energy Capacity 170 Matter Stores 300 Matter Capacity 300 Sight Range 16 Terrain Scan Range 16 Terrain Scan Density 10 Evasion (%) 55 Recoil Reduction 2 Item Schematics ----------------- Huge Storage Unit | -10/Materials | Hacked Hcp. Storage Unit | -10/Materials | Hacked Robot Schematics ------------------ None Fabricated ------------ Nothing Alien Tech Used ----------------- None Achievements -------------- None Challenges ------------ None Game ------ Seed GodInertialTendrils Manual? 0 Play Time 00:25:09 Cumulative 1216.6 hours Start 2021.12.24 @ 11:23:03 End 2021.12.24 @ 12:19:09 Sessions 3 Manual Loads 0 Difficulty Rogue Special Mode Winter2021/Sauler Game No. 339 Rogue 339 Adventurer 0 Explorer 0 Win Type - Total 41 Types 25/6/7/3/0/0/0/0/0 Lore% 80 Gallery% 84 Achievement% 73 Wizard Run 0 Options --------- ASCII 0 Keyboard 1 Movement Numpad Keybinds 0 Fullscreen 1 Font 24/Crisp Map View 76x50 Tactical HUD 1 Map Filters NONE Filters NONE Steam 1 RUN: de844e7b-2928-4caa-b7ec-c9b92cde6227